bitfinex-derivatives/quotes_ETHF0:USTF0_20250404
["timestamp","ask_amount","ask_price","bid_price","bid_amount"]
[1743741464860,4.32566,1789.8,1789.7,1.47609016]
[1743741465358,4.32566,1789.8,1789.7,2.22369016]
[1743741466861,4.32566,1789.8,1789.7,1.47609016]
[1743741474568,5.85166,1789.8,1789.7,1.47609016]
[1743741475563,2.64386,1789.8,1789.7,1.47609016]
[1743741475766,5.85166,1789.8,1789.7,1.47609016]
[1743741475963,6.60966,1789.8,1789.7,1.47609016]
[1743741480965,4.32566,1789.8,1789.7,1.47609016]
[1743741481662,4.32566,1789.8,1789.7,2.59402016]
[1743741481866,4.32566,1789.8,1789.7,1.47609016]
[1743741483165,5.79276,1789.8,1789.7,1.47609016]
[1743741486467,4.32566,1789.8,1789.7,1.47609016]
[1743741488767,4.32566,1789.8,1789.7,2.59402016]
[1743741490564,3.2078,1790.0,1789.9,1.1178]
[1743741490870,1.11772,1790.1,1790.0,1.11773]
[1743741491070,1.11774,1790.0,1789.9,2.52255]
[1743741492771,1.11772,1790.1,1790.0,1.11773]
[1743741492969,1.11772,1790.1,1790.0,1.4626]
[1743741494573,1.11772,1790.1,1790.0,2.58034]
[1743741495272,1.11772,1790.1,1790.0,1.4626]
[1743741495861,1.11772,1790.1,1790.0,2.58034]
[1743741497471,1.11772,1790.1,1790.0,1.4626]
[1743741499074,2.63342,1790.1,1790.0,1.4626]
[1743741499477,1.11786,1789.8,1789.7,0.00559016]
[1743741499674,4.32566,1789.8,1789.7,1.48939016]
[1743741499889,4.32566,1789.8,1789.7,0.00559016]
[1743741500289,5.84136,1789.8,1789.7,0.00559016]
[1743741500894,5.84136,1789.8,1789.7,1.42439016]
[1743741501896,4.32566,1789.8,1789.7,1.42439016]
[1743741503395,4.32566,1789.8,1789.7,0.00559016]
[1743741503589,5.82046,1789.8,1789.7,0.00559016]
[1743741505197,4.32566,1789.8,1789.7,0.00559016]
[1743741505497,4.32566,1789.8,1789.7,1.45599016]
[1743741505898,4.32566,1789.8,1789.7,2.57392016]
[1743741506087,4.32566,1789.8,1789.7,1.45599016]
[1743741506894,4.32566,1789.8,1789.7,2.17109016]
[1743741507301,5.80336,1789.8,1789.7,2.17109016]
[1743741507595,5.80336,1789.8,1789.7,1.45599016]
[1743741508995,4.32566,1789.8,1789.7,1.45599016]
[1743741509801,9.4058,1789.8,1789.0,3.92285022]
[1743741509997,4.32604,1789.2,1789.1,0.7647]
[1743741510200,4.32604,1789.2,1789.1,2.1666]
[1743741510398,3.2078,1789.2,1789.1,3.2849]
[1743741510601,1.8131,1789.3,1789.2,1.11824]
[1743741510903,1.1182,1789.3,1789.2,3.26764]
[1743741511301,3.21618528,1789.4,1789.2,2.1494]
[1743741511502,3.21618528,1789.4,1789.2,0.7475]
[1743741511703,1.11818,1789.3,1789.2,1.86569]
[1743741513005,4.33434528,1789.4,1789.3,1.11818]
[1743741513200,1.12654528,1789.4,1789.3,1.11818]
[1743741513595,1.11818,1789.3,1789.2,1.8657]
[1743741513797,4.33435528,1789.4,1789.2,1.8657]
[1743741514005,1.11818,1789.3,1789.2,1.8657]
[1743741514507,4.33434528,1789.4,1789.2,1.8657]
[1743741514704,4.33434528,1789.4,1789.3,1.11818]
[1743741515701,1.11818,1789.3,1789.2,0.7475]
[1743741515905,1.11818,1789.3,1789.2,1.86569]
[1743741516501,4.33435528,1789.4,1789.3,1.11818]
[1743741516702,1.11818,1789.3,1789.2,1.86569]
[1743741516901,1.11824,1789.2,1789.1,1.88296]
[1743741517608,4.32604,1789.2,1789.0,1.34317022]
[1743741517909,1.8631,1789.1,1789.0,1.34321022]
[1743741520708,1.8631,1789.1,1789.0,0.22485022]
[1743741521207,3.3964,1789.1,1789.0,1.34321022]
[1743741521806,3.3964,1789.1,1789.0,0.22485022]
[1743741522906,3.3964,1789.1,1789.0,1.34321022]
[1743741523305,3.3964,1789.1,1789.0,0.22485022]
[1743741523906,3.3964,1789.1,1789.0,1.34321022]
[1743741524107,1.8631,1789.1,1789.0,1.34321022]
[1743741524308,1.8631,1789.1,1789.0,0.22485022]
[1743741524511,1.8631,1789.1,1789.0,1.34321022]
[1743741524810,1.1183,1789.1,1789.0,1.34321022]
[1743741527005,1.1183,1789.1,1789.0,0.22485022]
[1743741528108,1.1183,1789.1,1789.0,1.34321022]
[1743741528314,1.1183,1789.1,1789.0,2.87251022]
[1743741531515,4.3261,1789.1,1789.0,2.64766]
[1743741534619,5.7617,1789.1,1789.0,2.64766]
[1743741534821,5.7617,1789.1,1789.0,1.5293]
[1743741536023,3.2078,1789.1,1789.0,2.64766]
[1743741537020,4.3261,1789.1,1789.0,2.64766]
[1743741537313,3.2078,1789.1,1789.0,2.64766]
[1743741538823,4.3261,1789.1,1789.0,2.64766]
[1743741540827,3.2078,1789.1,1789.0,6.34666]
[1743741541331,0.75408528,1789.4,1789.3,1.11818]
[1743741541629,1.87219528,1789.4,1789.3,1.11818]
[1743741541927,0.00838528,1789.4,1789.3,3.36698]
[1743741543326,0.00838528,1789.4,1789.3,7.06498]
[1743741543726,3.2078,1789.7,1789.6,1.11799]
[1743741544130,3.2078,1789.7,1789.6,4.81599]
[1743741544627,3.2078,1789.7,1789.6,5.53009]
[1743741545125,0.00838528,1789.8,1789.7,1.11793]
[1743741545322,0.00838528,1789.8,1789.7,3.27523]
[1743741545519,0.00838528,1789.8,1789.7,5.77523]
[1743741546331,4.33404528,1789.8,1789.7,1.4001]
[1743741546830,4.33404528,1789.8,1789.7,2.51803]
[1743741547030,4.65018528,1789.8,1789.7,2.51803]
[1743741547426,5.76804528,1789.8,1789.7,2.51803]
[1743741548332,5.76804528,1789.8,1789.6,1.11797]
[1743741548333,4.65018528,1789.8,1789.6,1.11797]
[1743741548635,1.434,1789.7,1789.6,1.11797]
[1743741549030,1.434,1789.7,1789.6,2.59747]
[1743741549226,4.33409528,1789.8,1789.6,2.59747]
[1743741549227,4.33409528,1789.8,1789.7,1.11793]
[1743741549433,5.77339528,1789.8,1789.7,2.57223]
[1743741549934,5.77339528,1789.8,1789.7,1.4543]
[1743741550135,5.77339528,1789.8,1789.7,2.57223]
[1743741551235,5.77339528,1789.8,1789.7,1.4543]
[1743741551437,5.77339528,1789.8,1789.7,2.57223]
[1743741552034,5.77339528,1789.8,1789.7,1.4543]
[1743741553135,5.77339528,1789.8,1789.7,2.57223]
[1743741553338,5.77334528,1789.8,1789.7,2.57223]
[1743741553536,4.65548528,1789.8,1789.7,2.57223]
[1743741554343,5.77334528,1789.8,1789.7,2.57223]
[1743741554533,3.21618528,1789.8,1789.7,2.57223]
[1743741555831,3.21618528,1789.8,1789.7,6.26923]
[1743741559139,0.00838528,1789.8,1789.7,6.26923]
[1743741561443,0.00838528,1789.8,1789.7,4.81493]
[1743741561839,0.00838528,1789.8,1789.7,6.21083]
[1743741562039,0.00838528,1789.8,1789.7,2.51383]
[1743741564343,0.00838528,1789.8,1789.7,6.21083]
[1743741567841,0.00838528,1789.8,1789.7,6.20983]
[1743741568047,1.46618528,1789.8,1789.7,6.20983]
[1743741568544,0.00838528,1789.8,1789.7,6.20983]
[1743741573844,0.00838528,1789.8,1789.7,8.70983]
[1743741578753,3.2078,1790.1,1790.0,1.11774]
[1743741578951,3.2078,1790.1,1790.0,4.81374]
[1743741579152,3.2078,1790.1,1790.0,7.47550625]
[1743741579352,3.2078,1790.1,1790.0,7.03274]
[1743741579952,0.72918528,1790.2,1790.1,1.11768]
[1743741580151,0.72918528,1790.2,1790.1,2.57488]
[1743741581050,1.84679528,1790.2,1790.1,2.57488]
[1743741581250,3.37289528,1790.2,1790.1,2.57488]
[1743741581955,2.25528528,1790.2,1790.1,2.57488]
[1743741582355,3.37289528,1790.2,1790.1,2.57488]
[1743741583050,3.37289528,1790.2,1790.0,4.81369]
[1743741583051,1.11768,1790.1,1790.0,4.81369]
[1743741583247,5.74218,1790.1,1790.0,4.81369]
[1743741584253,4.6245,1790.1,1790.0,4.81369]
[1743741584652,3.93698528,1790.2,1790.1,1.11768]
[1743741584853,3.93698528,1790.2,1790.1,2.65178]
[1743741585054,3.93698528,1790.2,1790.1,3.38058]
[1743741585952,5.38478528,1790.2,1790.1,3.38058]
[1743741587445,2.17698528,1790.2,1790.1,3.38058]
[1743741587650,5.38478528,1790.2,1790.1,3.38058]
[1743741588157,6.50239528,1790.2,1790.1,3.38058]
[1743741588659,5.38478528,1790.2,1790.1,3.38058]
[1743741589157,6.50239528,1790.2,1790.1,3.38058]
[1743741589359,6.50239528,1790.2,1790.1,2.2629]
[1743741589559,1.11768,1790.1,1790.0,3.696]
[1743741589759,2.50658,1790.1,1790.0,3.696]
[1743741590460,1.3889,1790.1,1790.0,4.81369]
[1743741590658,1.3889,1790.1,1790.0,6.21439]
[1743741591155,2.50658,1790.1,1790.0,6.21439]
[1743741591361,4.1831,1790.1,1789.6,3.51931]
[1743741591566,4.32564,1789.9,1789.8,1.11785]
[1743741592060,6.54064,1789.9,1789.8,1.11785]
[1743741592362,6.54064,1789.9,1789.8,1.11786]
[1743741592561,6.54064,1789.9,1789.7,1.4007]
[1743741592863,1.5043,1789.8,1789.7,2.51863]
[1743741593955,1.5043,1789.8,1789.5,0.44803873]
[1743741594157,1.11799,1789.6,1789.5,0.44803873]
[1743741594363,1.11799,1789.6,1789.5,0.00838528]
[1743741594663,3.34299,1789.6,1789.5,0.00838528]
[1743741595263,2.225,1789.6,1789.5,1.12643528]
[1743741597163,2.225,1789.6,1789.5,2.66323528]
[1743741598665,0.7207,1789.6,1789.5,2.66323528]
[1743741603266,1.83869,1789.6,1789.5,0.00838528]
[1743741603470,3.34689,1789.6,1789.5,0.00838528]
[1743741612874,1.11818,1789.3,1789.2,1.82069]
[1743741613175,1.11824,1789.2,1789.1,6.20565]
[1743741613375,1.87634,1789.2,1789.1,6.20565]
[1743741613577,3.30924,1789.2,1789.1,6.20565]
[1743741613770,3.30924,1789.2,1789.1,2.51065]
[1743741614170,2.191,1789.2,1789.1,2.51065]
[1743741614367,2.191,1789.2,1789.1,3.26735]
[1743741614578,3.30924,1789.2,1789.1,3.26735]
[1743741615376,3.30924,1789.2,1789.1,2.1491]
[1743741618685,1.87634,1789.2,1789.1,2.1491]
[1743741619981,1.11824,1789.2,1789.1,2.1491]
[1743741620182,1.11824,1789.2,1789.1,2.8666]
[1743741620688,1.11824,1789.2,1789.1,3.9849]
[1743741620882,1.11824,1789.2,1789.1,2.8666]
[1743741621089,1.11824,1789.2,1789.1,2.1491]
[1743741621489,2.56944,1789.2,1789.1,1.3924]
[1743741622487,2.56944,1789.2,1789.1,2.5107]
[1743741622690,1.11824,1789.2,1789.1,2.5107]
[1743741622884,3.926,1789.3,1789.0,0.00838528]
[1743741623083,4.3261,1789.1,1789.0,0.00838528]
[1743741623784,4.3261,1789.1,1789.0,1.49388528]
[1743741624190,5.0488,1789.1,1789.0,1.49388528]
[1743741624592,5.0488,1789.1,1789.0,2.61224528]
[1743741624889,4.3261,1789.1,1789.0,2.61224528]
[1743741626880,4.3261,1789.1,1789.0,0.00838528]
[1743741627084,5.8303,1789.1,1789.0,1.12674528]
[1743741627283,5.8303,1789.1,1789.0,2.55584528]
[1743741627686,5.8303,1789.1,1789.0,1.43748528]
[1743741629795,5.8303,1789.1,1789.0,2.55584528]
[1743741630697,5.8303,1789.1,1789.0,1.43748528]
[1743741631183,4.3261,1789.1,1789.0,1.43748528]
[1743741631389,4.3261,1789.1,1789.0,2.19828528]
[1743741633493,4.3261,1789.1,1789.0,1.43748528]
[1743741633683,5.8616,1789.1,1789.0,1.43748528]
[1743741633884,5.8616,1789.1,1789.0,0.00838528]
[1743741634090,2.79591,1789.0,1788.4,1.11872]
[1743741634289,1.11873,1788.5,1788.4,2.63172]
[1743741635480,1.11873,1788.5,1788.4,4.14004]
[1743741635886,1.11873,1788.5,1788.4,3.0213]
[1743741636085,4.32653,1788.5,1788.4,3.0213]
[1743741636292,4.32653,1788.5,1788.4,4.14004]
[1743741636495,1.11873,1788.5,1788.4,4.14004]
[1743741637592,1.11873,1788.5,1788.4,3.0213]
[1743741637787,1.11864,1788.6,1788.4,4.13998]
[1743741637993,5.3882,1788.7,1788.5,1.4958]
[1743741638194,1.11861,1788.6,1788.5,2.61447]
[1743741638895,1.11861,1788.6,1788.5,2.61448]
[1743741639192,1.11861,1788.6,1788.5,1.4958]
[1743741639693,1.11861,1788.6,1788.5,2.61448]
[1743741640089,1.11861,1788.6,1788.5,1.4958]
[1743741640289,1.11861,1788.6,1788.5,2.61448]
[1743741640791,1.11861,1788.6,1788.5,2.61444]
[1743741640989,7.2374,1788.7,1788.5,2.61443]
[1743741641197,7.2374,1788.7,1788.6,1.5172]
[1743741641588,6.4742,1788.7,1788.6,1.5172]
[1743741644392,1.11868,1788.5,1788.4,0.7679]
[1743741644599,1.11868,1788.5,1788.3,2.54537]
[1743741644600,1.11874,1788.4,1788.3,2.54537]
[1743741644795,3.24444,1788.4,1788.3,1.4266]
[1743741646093,3.24444,1788.4,1788.3,2.5454]
[1743741646597,3.24444,1788.4,1788.3,1.4266]
[1743741646793,3.24444,1788.4,1788.3,2.5454]
[1743741647201,3.24444,1788.4,1788.3,1.4266]
[1743741647399,3.24444,1788.4,1788.3,2.5454]
[1743741647602,3.24444,1788.4,1788.3,1.4266]
[1743741648105,3.24444,1788.4,1788.3,2.5454]
[1743741648598,3.24444,1788.4,1788.3,1.4266]
[1743741648800,3.24444,1788.4,1788.3,2.5454]
[1743741649000,3.24444,1788.4,1788.3,1.4266]
[1743741651001,3.24444,1788.4,1788.3,2.5454]
[1743741651301,1.82634,1788.4,1788.3,1.4266]
[1743741654306,1.82634,1788.4,1788.3,2.5454]
[1743741654803,4.32653,1788.5,1788.4,1.11874]
[1743741654991,4.32653,1788.5,1788.4,3.21914]
[1743741656403,3.2078,1788.5,1788.4,3.21914]
[1743741657906,4.32648,1788.5,1788.4,3.21914]
[1743741659309,3.2078,1788.5,1788.4,3.21914]
[1743741660309,4.32648,1788.5,1788.4,3.21914]
[1743741661910,9.1758,1788.7,1788.6,1.11861]
[1743741662104,3.2078,1788.9,1788.8,1.11849]
[1743741662413,4.32623,1788.9,1788.8,1.11849]
[1743741662804,4.32623,1788.9,1788.8,1.82199]
[1743741663006,4.32623,1788.9,1788.8,3.26839]
[1743741663510,3.2078,1788.9,1788.8,3.26839]
[1743741663713,4.32623,1788.9,1788.8,3.26839]
[1743741664507,3.2078,1788.9,1788.8,3.26839]
[1743741664707,4.32623,1788.9,1788.8,3.26839]
[1743741664908,3.2078,1788.9,1788.8,3.26839]
[1743741665207,4.32623,1788.9,1788.8,3.26839]
[1743741666207,4.32623,1788.9,1788.8,1.4464]
[1743741666408,4.32623,1788.9,1788.8,2.56489]
[1743741666609,1.11851,1788.8,1788.7,1.1185]
[1743741666807,3.33281,1788.8,1788.7,2.6432]
[1743741667316,2.2143,1788.8,1788.7,2.6432]
[1743741668016,3.33279,1788.8,1788.7,2.6432]
[1743741669714,2.79638,1788.7,1788.2,2.79713]
[1743741670019,4.32648,1788.5,1788.4,1.4144]
[1743741670315,4.32648,1788.5,1788.4,2.53314]
[1743741670617,5.05308,1788.5,1788.4,2.53314]
[1743741670818,5.05308,1788.5,1788.4,1.4144]
[1743741671009,5.05308,1788.5,1788.4,2.53314]
[1743741671212,5.05308,1788.5,1788.4,1.4144]
[1743741676615,1.11874,1788.4,1788.2,2.63156]
[1743741676812,1.1188,1788.3,1788.2,2.242]
[1743741677817,3.40239,1788.4,1788.2,3.36086]
[1743741678020,3.40239,1788.4,1788.3,1.5052]
[1743741678323,1.11874,1788.4,1788.3,1.5052]
[1743741678715,1.11874,1788.4,1788.3,2.624]
[1743741679122,5.4159,1788.5,1788.3,2.624]
[1743741679317,1.11874,1788.4,1788.3,1.1188]
[1743741680117,6.53462,1788.5,1788.3,1.8736]
[1743741680416,1.11874,1788.4,1788.3,0.7548]
[1743741680617,1.11874,1788.4,1788.3,1.8736]
[1743741680821,6.53462,1788.5,1788.4,1.11874]
[1743741682419,1.11874,1788.4,1788.3,1.87355]
[1743741682621,6.53463,1788.5,1788.3,0.7548]
[1743741682823,6.53463,1788.5,1788.4,1.11874]
[1743741686429,5.05313,1788.5,1788.4,1.11874]
[1743741688627,5.05311,1788.5,1788.4,1.11874]
[1743741692627,3.9344,1788.5,1788.4,1.11874]
[1743741693023,3.2078,1788.7,1788.5,1.11868]
[1743741693329,5.04148,1788.9,1788.5,3.91527]
[1743741693522,5.04148,1788.9,1788.6,1.4339]
[1743741693723,1.1185,1788.8,1788.7,1.11851]
[1743741695528,3.923,1788.9,1788.6,1.4339]
[1743741695829,3.2078,1788.7,1788.6,2.55247]
[1743741696330,4.32635,1788.7,1788.6,2.55247]
[1743741697232,3.2078,1788.7,1788.6,2.55247]
[1743741700734,3.2078,1788.7,1788.6,3.97027]
[1743741701125,2.64575,1788.8,1788.7,1.11855]
[1743741701330,2.64575,1788.8,1788.7,2.53635]
[1743741703235,5.04148,1788.9,1788.8,1.11849]
[1743741703427,6.48198,1788.9,1788.8,2.56109]
[1743741704636,6.48198,1788.9,1788.8,1.4426]
[1743741704839,6.48198,1788.9,1788.8,2.56109]
[1743741705030,1.11853,1788.8,1788.7,1.11849]
[1743741705230,2.52143,1788.8,1788.7,2.53799]
[1743741706339,2.52143,1788.8,1788.7,1.4195]
[1743741706540,3.26273,1788.8,1788.7,1.4195]
[1743741707232,3.26273,1788.8,1788.7,2.53805]
[1743741709945,3.26273,1788.8,1788.7,1.4195]
[1743741710732,3.26273,1788.8,1788.7,2.53805]
[1743741711336,3.26273,1788.8,1788.7,1.4195]
[1743741713342,1.11853,1788.8,1788.7,1.4195]
[1743741713531,1.11853,1788.8,1788.7,2.1706]
[1743741713734,1.11853,1788.8,1788.7,3.28915]
[1743741713937,1.11853,1788.8,1788.7,2.1706]
[1743741714137,1.11853,1788.8,1788.7,3.28915]
[1743741714434,1.11853,1788.8,1788.7,1.4195]
[1743741716642,1.11853,1788.8,1788.7,2.53805]
[1743741717945,1.11853,1788.8,1788.7,1.4195]
[1743741718946,2.52893,1788.8,1788.7,2.53805]
[1743741719147,2.52893,1788.8,1788.7,1.4195]
[1743741719643,2.52893,1788.8,1788.7,2.53805]
[1743741720048,2.52893,1788.8,1788.7,1.4195]
[1743741720749,2.52893,1788.8,1788.7,2.53805]
[1743741722352,1.11853,1788.8,1788.7,2.53805]
[1743741722953,4.32628,1788.9,1788.8,1.11849]
[1743741723156,5.05825,1789.1,1789.0,1.11836]
[1743741723452,1.11829,1789.2,1789.1,1.1183]
[1743741723647,1.1183,1789.1,1789.0,1.11831]
[1743741723853,4.3261,1789.1,1789.0,2.55951]
[1743741724853,3.2078,1789.1,1789.0,2.55951]
[1743741725658,4.3261,1789.1,1789.0,2.55951]
[1743741726566,5.0242,1789.1,1789.0,2.55951]
[1743741726966,3.9059,1789.1,1789.0,2.55951]
[1743741727266,3.2078,1789.1,1789.0,2.55951]
[1743741727461,3.2078,1789.1,1789.0,6.25051]
[1743741734374,4.32605,1789.2,1789.1,1.1183]
[1743741734674,4.32605,1789.2,1789.1,2.5462]
[1743741735873,4.32604,1789.2,1789.1,2.5462]
[1743741742078,5.04534,1789.2,1789.1,2.5462]
[1743741743575,0.00838528,1789.3,1789.2,1.11824]
[1743741743880,0.00838528,1789.3,1789.2,3.97914]
[1743741744083,3.2078,1789.6,1789.5,1.11805]
[1743741744575,4.32579,1789.6,1789.5,1.11805]
[1743741744775,4.32579,1789.6,1789.5,3.29945]
[1743741745175,4.32579,1789.6,1789.5,2.1814]
[1743741746584,4.32579,1789.6,1789.5,3.29945]
[1743741749084,4.32579,1789.6,1789.5,2.1814]
[1743741749686,4.32579,1789.6,1789.5,3.29945]
[1743741749885,4.32579,1789.6,1789.5,2.1814]
[1743741750086,4.32579,1789.6,1789.5,3.29945]
[1743741755388,4.32579,1789.6,1789.5,2.1814]
[1743741755691,5.76209,1789.6,1789.5,1.4562]
[1743741755890,6.47919,1789.6,1789.5,1.4562]
[1743741756888,1.11805,1789.5,1789.4,0.00838528]
[1743741757087,1.11832,1789.1,1789.0,4.80631]
[1743741757287,1.11832,1789.1,1789.0,6.23551]
[1743741757791,3.33182,1789.1,1789.0,1.4292]
[1743741757985,1.11843,1788.9,1788.8,2.54769]
[1743741758893,4.701,1789.0,1788.8,2.54769]
[1743741759088,5.81942,1789.0,1788.9,1.4292]
[1743741769598,5.81942,1789.0,1788.9,2.54763]
[1743741770602,3.2078,1789.0,1788.9,2.54763]
[1743741770793,3.2078,1789.2,1789.1,1.1183]
[1743741771300,3.2078,1789.2,1789.1,3.2746]
[1743741772203,4.32604,1789.2,1789.1,3.2746]
[1743741772794,5.79574,1789.2,1789.1,3.2746]
[1743741775101,3.2078,1789.2,1789.1,3.2746]
[1743741775904,0.7648,1789.3,1789.2,1.11824]
[1743741776105,0.7648,1789.3,1789.2,2.58414]
[1743741776306,4.32596,1789.4,1789.3,1.11818]
[1743741776606,4.32596,1789.4,1789.3,2.58408]
[1743741777500,4.32596,1789.4,1789.3,1.4659]
[1743741777701,4.32596,1789.4,1789.3,2.58408]
[1743741778209,5.82566,1789.4,1789.3,2.58408]
[1743741778811,5.82566,1789.4,1789.3,1.4659]
[1743741779406,2.79548,1789.3,1788.9,2.79604]
[1743741779710,1.11833,1789.1,1789.0,1.11831]
[1743741780112,1.4997,1789.1,1789.0,1.11831]
[1743741780311,1.4997,1789.1,1789.0,2.63851]
[1743741781522,3.9675,1789.2,1789.1,1.1183]
[1743741781717,3.9675,1789.2,1789.1,3.3393]
[1743741781908,0.7597,1789.2,1789.1,3.3393]
[1743741782113,3.9675,1789.2,1789.1,3.3393]
[1743741782314,0.7597,1789.2,1789.1,3.3393]
[1743741782921,1.11818,1789.3,1789.2,1.11824]
[1743741783122,1.81408,1789.3,1789.2,2.63534]
[1743741783323,1.81408,1789.3,1789.2,1.5171]
[1743741783922,3.26338,1789.3,1789.2,2.63534]
[1743741784625,2.1452,1789.3,1789.2,2.63534]
[1743741784920,1.81408,1789.3,1789.2,2.63534]
[1743741790124,1.81408,1789.3,1789.2,1.5171]
[1743741793024,1.81408,1789.3,1789.2,2.63534]
[1743741793624,1.81408,1789.3,1789.2,1.5171]
[1743741793824,1.81408,1789.3,1789.2,2.63534]
[1743741795126,1.81408,1789.3,1789.2,1.5171]
[1743741796726,1.81408,1789.3,1789.2,2.63534]
[1743741802130,0.6959,1789.3,1789.2,2.63534]
[1743741802329,4.32597,1789.4,1789.3,1.11818]
[1743741802530,4.32597,1789.4,1789.3,2.54698]
[1743741809033,1.11824,1789.2,1789.1,4.3899]
[1743741809231,1.11843,1788.9,1788.8,2.60735]
[1743741809632,6.5021,1789.0,1788.9,1.11843]
[1743741809938,6.5021,1789.0,1788.9,1.4889]
[1743741811639,1.11843,1788.9,1788.8,1.11844]
[1743741811938,2.54643,1788.9,1788.8,1.11844]
[1743741813841,2.54643,1788.9,1788.7,2.6033]
[1743741814434,2.54643,1788.9,1788.8,1.443]
[1743741814741,2.54643,1788.9,1788.8,2.56149]
[1743741814941,1.11843,1788.9,1788.8,2.56149]
[1743741815242,1.11843,1788.9,1788.8,1.443]
[1743741815741,1.11843,1788.9,1788.8,2.56149]
[1743741817542,4.3262,1789.0,1788.9,1.11843]
[1743741817846,5.968,1789.3,1788.9,4.05143]
[1743741818141,5.968,1789.3,1789.2,1.11824]
[1743741818833,5.968,1789.3,1789.2,2.59634]
[1743741819238,7.08618,1789.3,1789.2,2.59634]
[1743741819542,5.968,1789.3,1789.2,2.59634]
[1743741821443,5.06936,1789.4,1789.3,1.11818]
[1743741821644,5.06936,1789.4,1789.3,2.63708]
[1743741822442,5.06936,1789.4,1789.3,1.5189]
[1743741822841,5.06936,1789.4,1789.3,2.63708]
[1743741823343,1.86156,1789.4,1789.3,2.63708]
[1743741823542,5.06936,1789.4,1789.3,2.63708]
[1743741827844,5.06936,1789.4,1789.3,1.5189]
[1743741828336,6.49486,1789.4,1789.3,1.5189]
[1743741829144,6.49486,1789.4,1789.3,2.63708]
[1743741834147,6.49486,1789.4,1789.3,1.5189]
[1743741834449,1.11818,1789.3,1789.2,0.7196]
[1743741834649,3.32688,1789.3,1789.2,1.83784]
[1743741835048,3.32688,1789.3,1789.2,3.33894]
[1743741836643,1.11818,1789.3,1789.2,3.33894]
[1743741838448,3.61818,1789.3,1788.9,3.2078]
[1743741838655,1.11855,1788.7,1788.6,2.1412]
[1743741838850,1.11855,1788.7,1788.6,1.4239]
[1743741839154,4.32635,1788.7,1788.6,1.4239]
[1743741840243,4.32635,1788.7,1788.6,2.1367]
[1743741840556,1.11878,1788.4,1788.2,1.11881]
[1743741840849,1.11878,1788.4,1788.3,2.1367]
[1743741843962,0.00838528,1788.5,1788.4,1.11874]
[1743741844261,0.00838528,1788.5,1788.4,2.50724]
[1743741845161,1.12706528,1788.5,1788.4,1.3885]
[1743741845860,0.00838528,1788.5,1788.4,1.3885]
[1743741846054,0.00838528,1788.5,1788.4,2.50724]
[1743741846259,0.00838528,1788.5,1788.4,1.3885]
[1743741847759,0.00838528,1788.5,1788.4,2.50724]
[1743741852064,0.00838528,1788.5,1788.4,3.27064]
[1743741854368,1.12706528,1788.5,1788.4,3.27064]
[1743741854866,4.33486528,1788.5,1788.4,2.1519]
[1743741855068,4.33486528,1788.5,1788.4,1.3885]
[1743741855569,5.06836528,1788.5,1788.4,1.3885]
[1743741856971,5.06836528,1788.5,1788.4,2.50724]
[1743741860284,1.86056528,1788.5,1788.4,2.50724]
[1743741862585,3.2078,1789.0,1788.9,1.11843]
[1743741862781,4.32609,1789.2,1789.0,1.11833]
[1743741862979,3.2078,1789.2,1789.0,2.55673]
[1743741863179,1.1183,1789.1,1789.0,2.55673]
[1743741863788,3.94008528,1789.2,1789.0,2.55673]
[1743741864087,5.05837528,1789.2,1789.1,1.4384]
[1743741864888,5.05837528,1789.2,1789.1,2.5567]
[1743741865082,5.05837528,1789.2,1789.1,1.4384]
[1743741865585,5.05837528,1789.2,1789.1,2.5567]
[1743741866588,5.05837528,1789.2,1789.1,1.4384]
[1743741866789,6.57527528,1789.2,1789.1,2.5567]
[1743741866984,1.11836,1789.0,1788.9,0.00838528]
[1743741867182,4.32616,1789.0,1788.9,0.00838528]
[1743741872187,1.11855,1788.7,1788.6,2.65971]
[1743741872491,4.32635,1788.7,1788.6,2.65971]
[1743741872687,4.32635,1788.7,1788.6,1.5411]
[1743741873094,1.11861,1788.6,1788.5,3.683]
[1743741873291,1.11868,1788.5,1788.4,0.7287]
[1743741873492,4.32648,1788.5,1788.4,0.7287]
[1743741873993,1.11874,1788.4,1788.3,5.0908]
[1743741875495,1.11874,1788.4,1788.3,1.4088]
[1743741880703,5.73721,1788.5,1788.3,1.4088]
[1743741881802,3.2078,1788.5,1788.3,1.4088]
[1743741881999,1.11874,1788.4,1788.3,1.4088]
[1743741883502,1.11874,1788.4,1788.3,2.5276]
[1743741883705,6.51522,1788.5,1788.3,2.5276]
[1743741884003,6.51522,1788.5,1788.4,1.4109]
[1743741888205,6.51522,1788.5,1788.4,2.52964]
[1743741888403,5.05992,1788.5,1788.4,1.4109]
[1743741889008,5.05992,1788.5,1788.4,2.52964]
[1743741891611,5.05992,1788.5,1788.4,1.4109]
[1743741892306,5.05992,1788.5,1788.4,2.52964]
[1743741892710,5.05992,1788.5,1788.4,1.4109]
[1743741892911,5.05992,1788.5,1788.4,2.52964]
[1743741893209,5.05992,1788.5,1788.4,1.4109]
[1743741893408,6.56302,1788.5,1788.4,1.4109]
[1743741893610,6.56302,1788.5,1788.4,2.52964]
[1743741894213,3.35522,1788.5,1788.4,2.52964]
[1743741894513,6.56302,1788.5,1788.4,1.4109]
[1743741895211,3.35522,1788.5,1788.4,1.4109]
[1743741895412,6.56302,1788.5,1788.4,1.4109]
[1743741895711,6.56302,1788.5,1788.4,2.52964]
[1743741897310,6.56302,1788.5,1788.4,1.4109]
[1743741897513,1.11875,1788.4,1788.3,1.11875]
[1743741897812,6.56303,1788.5,1788.4,1.11874]
[1743741898820,5.4443,1788.5,1788.3,1.4682]
[1743741899005,6.56302,1788.5,1788.4,1.11874]